Cogmind - Beta 16.1 @@@ ROGUE MODE // 2026.04.28 @ 11:07:51 Player: ChromeKnight Result: Destroyed by O0-68A(R) with Subdweller Beam Cannon Performance ------------- Evolutions (0) 0 Regions Visited (3) 600 Robots Destroyed (14) 70 Value Destroyed (390) 390 Prototype IDs (0) 0 Alien Tech Used (0) 0 Bonus (0) 0 TOTAL SCORE: 1060 Bonus ------- None Cogmind --------- Core Integrity 0/250 Matter 273/300 Energy 224/250 System Corruption 0% Temperature Cool (9) Movement Core (600) Ox11 Location -10/Subcaves Parts ------- > --- POWER (1) -------- Ion Engine > --- PROPULSION (2) --- (None) > --- UTILITY (2) ------ Large Storage Unit > --- WEAPON (2) ------- EM Pulse Gun Slug Cannon > --- INVENTORY (15) --- Wheel Compact Wheel Compact Wheel Signal Interpreter Assault Rifle Assault Rifle Grenade Launcher Grenade Launcher Rocket Launcher Datajack Peak State ------------ > --- POWER ------------ Ion Engine > --- PROPULSION ------- Light Treads Light Treads > --- UTILITY ---------- Improved Heat Sink Large Storage Unit > --- WEAPON ----------- EM Pulse Gun EM Pulse Gun > --- INVENTORY -------- Compact Wheel Compact Wheel Signal Interpreter EM Pulse Gun EM Pulse Gun EM Pulse Gun Assault Rifle Assault Rifle Grenade Launcher Grenade Launcher [Rating: 10] Favorites ----------- Power Ion Engine Engine Ion Engine Propulsion Light Treads Treads Light Treads Utility Large Storage Unit Device Improved Heat Sink Storage Large Storage Unit Protection Core Shielding Weapon EM Pulse Gun Energy Gun EM Pulse Gun Ballistic Gun Assault Rifle Ballistic Cannon Slug Cannon Build | -11 -10 -10 -10 ------- Run | Yrd Mat Min Sub Slots Evolved . | . . . . Power . | . . . . Propulsion . | . . . . Utility . | . . . . Weapon . | . . . . Parts Attached 16 | 6 5 2 3 Power 2 | 1 1 . . Engine 2 | 1 1 . . Core . | . . . . Reactor . | . . . . Propulsion 2 | 2 . . . Treads 2 | 2 . . . Leg . | . . . . Wheel . | . . . . Hover . | . . . . Flight . | . . . . Utility 4 | 1 2 1 . Device 1 | . 1 . . Storage 2 | 1 1 . . Processor . | . . . . Hackware . | . . . . Protection 1 | . . 1 . Artifact . | . . . . Weapon 8 | 2 2 1 3 Energy Gun 5 | . 2 1 2 Energy Cannon . | . . . . Ballistic Gun 2 | 2 . . . Ballistic Cannon 1 | . . . 1 Launcher . | . . . . Special Weapon . | . . . . Impact Weapon . | . . . . Slashing Weapon . | . . . . Piercing Weapon . | . . . . Special Melee Weapon . | . . . . Unidentified Prototypes . | . . . . Parts Lost 8 | . 2 . 6 Power 1 | . 1 . . Propulsion 2 | . . . 2 Utility 1 | . . . 1 Weapon 4 | . 1 . 3 Highest Loss Streak 6 | . 1 . 6 To Critical Strikes . | . . . . Average Backups 9 | . 8 11 12 Power . | . . . . Propulsion 2 | . 1 3 3 Utility 1 | . 1 1 1 Weapon 5 | . 5 6 7 Tool/Special . | . . . . Unused Backups 12 | . 2 . 10 Power . | . . . . Propulsion 3 | . . . 3 Utility 1 | . . . 1 Weapon 7 | . 2 . 5 Tool/Special 1 | . . . 1 Average Slot Usage (%) 94 | . 92 100 95 Engine 13 | . 13 14 14 Treads 27 | . 28 28 24 Device 8 | . 7 11 . Storage 14 | . 14 14 14 Protection 1 | . . 2 12 Energy Gun 19 | . 15 28 26 Ballistic Gun 7 | . 12 . . Peak Build Rating 10 | 6 10 10 9 Average Rating 8 | 4 8 9 7 On Entrance 5 | . 6 9 8 Avg Prop Armor Cover (%) . | . . . . Naked Turns . | . . . . Heaviest Build 30 | 11 30 30 30 Greatest Support 40 | 40 40 40 40 Greatest Overweight (x) . | . . . . Average Overweight (x) . | . . . . Largest Inventory Capacity 15 | 8 15 15 15 Average Capacity 13 | 6 12 15 15 Most Carried 14 | . 12 14 13 Average Carried 9 | . 8 11 12 Final Capacity 15 | 8 15 15 15 Final Carried 13 | . 12 13 10 Class Distribution -------------------- 100% | Mutant Dominant Class ---------------- Mutant | -10/Materials Mutant | -10/Mines Mutant | -10/Subcaves Resources | -11 -10 -10 -10 ----------- Run | Yrd Mat Min Sub Matter Collected 437 | 259 158 20 . Remotely . | . . . . Salvage Created 543 | . 503 . 40 Parts 23 | . 22 . 1 Haulers Intercepted . | . . . . Recyclers Shooed . | . . . . Parts Field Recycled . | . . . . Retrieved Matter . | . . . . Parts Self-Destructed . | . . . . Prevented . | . . . . Parts Restored . | . . . . Kills | -11 -10 -10 -10 ------- Run | Yrd Mat Min Sub Combat Hostiles Destroyed 8 | . 7 . 1 Guns 6 | . 5 . 1 AOE 1 | . 1 . . Classes Destroyed 5 | . 4 . 1 Recycler 1 | . 1 . . Operator 3 | . 3 . . Watcher 2 | . 2 . . Grunt 7 | . 7 . . Subdweller 1 | . . . 1 Best Kill Streak 2 | . 2 . 1 Combat Bots Only 2 | . 2 . 1 Max Kills in Single Turn 1 | . 1 . 1 Gunslinging . | . . . . Exploded 1 | . 1 . . Melee . | . . . . Uniques/NPCs Destroyed . | . . . . Combat | -11 -10 -10 -10 -------- Run | Yrd Mat Min Sub Hostile Shots Fired 56 | . 35 . 21 Missed 15 | . 9 . 6 Hits 41 | . 26 . 15 Projectile 41 | . 26 . 15 AOE 2 | . . . 2 Critical Strikes 1 | . . . 1 Damage Taken 870 | . 409 . 461 Core 262 | . 118 . 144 Absorbed by Shields . | . . . . Redirected to Shielding 27 | . . . 27 Core Remaining (%) 100 | 100 . . . Volleys Fired 63 | . 52 . 11 Largest 2 | . 2 . 2 Hottest 80 | . 80 . 80 Shots Fired 116 | . 96 . 20 Gun 114 | . 96 . 18 Cannon 2 | . . . 2 Launcher . | . . . . Special . | . . . . Kinetic 58 | . 56 . 2 Thermal . | . . . . Explosive . | . . . . Electromagnetic 58 | . 40 . 18 Robot Hit Streak 26 | . 26 . 10 Robot Miss Streak 4 | . 4 . 2 Penetration Max . | . . . . Secondary Targets 1 | . 1 . . Max Gunslinging Chain 1 | . 1 . . Shots Hit Robots 83 | . 68 . 15 Core Hits 25 | . 21 . 4 Critical Kills . | . . . . Critical Parts Destroyed . | . . . . Critical Strikes 2 | . 1 . 1 Corrupt 2 | . 1 . 1 Melee Attacks . | . . . . Impact . | . . . . Slashing . | . . . . Piercing . | . . . . Sneak Attacks . | . . . . Combat Hostiles . | . . . . Follow-up Attacks . | . . . . Damage Inflicted 1154 | . 953 . 201 Guns 1007 | . 851 . 156 Cannons 45 | . . . 45 Explosions 102 | . 102 . . Melee . | . . . . Ramming . | . . . . Kinetic 453 | . 408 . 45 Thermal 102 | . 102 . . Explosive . | . . . . Electromagnetic 599 | . 443 . 156 Impact . | . . . . Slashing . | . . . . Piercing . | . . . . Highest Corruption . | . . . . Average Corruption . | . . . . Corruption Purged . | . . . . Corruption Blocked . | . . . . Overload Shots . | . . . . Overflow Damage 44 | . 44 . . Projectiles . | . . . . Explosions 44 | . 44 . . Melee . | . . . . Knockbacks 1 | . . . 1 Impact . | . . . . Kinetic 1 | . . . 1 Secondary . | . . . . Self-Inflicted Damage 49 | . 49 . . Shots 1 | . 1 . . Rammed . | . . . . Targets Rammed . | . . . . Kicked . | . . . . Crushed . | . . . . Highest Temperature 295 | . 18 . 295 Average Temperature 62 | . 7 . 143 Received Heat Transfer 624 | . 207 . 417 Siege Activations . | . . . . Martial Activations . | . . . . Shielding Activations . | . . . . Robots Disrupted . | . . . . Combat Hostiles . | . . . . Robots Corrupted 2 | . 2 . . Combat Hostiles 1 | . 1 . . Parts Fried 1 | . 1 . . Impact Corruptions . | . . . . Robots Melted . | . . . . Combat Hostiles . | . . . . Parts Melted . | . . . . Heat Transferred 100 | . 100 . . Parts Sabotaged . | . . . . Parts Stolen . | . . . . Parts Stripped . | . . . . Power Chain Reactions 1 | . 1 . . Alert | -11 -10 -10 -10 ------- Run | Yrd Mat Min Sub Maximum Alert Level . | . . . . Low Security (%) 100 | 100 100 100 . Level 1 . | . . . . Level 2 . | . . . . Level 3 . | . . . . Level 4 . | . . . . Level 5 . | . . . . High Security . | . . . . Max Security . | . . . . Peak Influence 60 | . 60 12 . Initial 12 | . . 12 . Average 7 | . 11 . . Influence Increases 255 | . 255 . . Destroy 0b10 Robot/C 140 | . 140 . . Destroy 0b10 Robot/NC 30 | . 30 . . Destroy Leader 44 | . 44 . . Successful Hack 6 | . 6 . . Destroy Structure 5 | . 5 . . Partial Spotted 15 | . 15 . . Lose Combat Pursuer 15 | . 15 . . Influence Decreases 255 | . 222 33 . Entered New Map 21 | . . 21 . Time Decay 214 | . 202 12 . Lost Part 20 | . 20 . . Squads Dispatched 2 | . 2 . . Investigation . | . . . . Extermination . | . . . . Reinforcement 2 | . 2 . . Assault . | . . . . Garrison . | . . . . Intercept . | . . . . Searches Triggered . | . . . . Construction Impeded . | . . . . Haulers Reinforced . | . . . . Active Scanning Responses . | . . . . Cargo Convoy Interrupts . | . . . . Stealth | -11 -10 -10 -10 --------- Run | Yrd Mat Min Sub Distress Signals 2 | . 2 . . Communications Jammed . | . . . . Distress Signals . | . . . . Times Spotted 21 | . 18 . 3 Peak Tracking Total 4 | . 4 . 3 Tactical Retreats 1 | . 1 . . Traps | -11 -10 -10 -10 ------- Run | Yrd Mat Min Sub Traps Triggered . | . . . . Indirectly . | . . . . Trap Hack Attempts . | . . . . Triggered . | . . . . Disarmed . | . . . . Reprogrammed . | . . . . Reused . | . . . . Traps Extracted . | . . . . Installed . | . . . . Triggered . | . . . . Machines | -11 -10 -10 -10 ---------- Run | Yrd Mat Min Sub Machines Disabled . | . . . . Max in Single Turn . | . . . . Machines Repaired . | . . . . Machines Dismantled . | . . . . Machines Sabotaged . | . . . . Overloaded Fab Kills . | . . . . Hacking | -11 -10 -10 -10 --------- Run | Yrd Mat Min Sub Machines Accessed 4 | . 4 . . Terminals 4 | . 4 . . Fabricators . | . . . . Repair Stations . | . . . . Recycling Units . | . . . . Scanalyzers . | . . . . Garrison Access . | . . . . Total Hacks 9 | . 9 . . Successful 3 | . 3 . . Failed 6 | . 6 . . Catastrophic 1 | . 1 . . Database Lockouts . | . . . . Manual 9 | . 9 . . Terminals 9 | . 9 . . Fabricators . | . . . . Repair Stations . | . . . . Recycling Units . | . . . . Scanalyzers . | . . . . Garrison Access . | . . . . Terminal Hacks 1 | . 1 . . Robot Analysis 1 | . 1 . . Fabricator Hacks . | . . . . Repair Station Hacks . | . . . . Recycling Unit Hacks . | . . . . Scanalyzer . | . . . . Garrison Access Hacks . | . . . . Unauthorized Hacks 2 | . 2 . . Terminals 2 | . 2 . . Assimilate 1 | . 1 . . Operators 1 | . 1 . . Fabricators . | . . . . Repair Stations . | . . . . Recycling Units . | . . . . Scanalyzers . | . . . . Garrison Access . | . . . . Data Cores Recovered 1 | . 1 . . Used 1 | . 1 . . Hacking Detections 4 | . 4 . . Full Trace Events . | . . . . Feedback Events . | . . . . Feedback Blocked . | . . . . Robot Schematics Acquired . | . . . . Robots Built . | . . . . Authchips . | . . . . Time . | . . . . Total Robot Build Rating . | . . . . Part Schematics Acquired . | . . . . Parts Built . | . . . . Authchips . | . . . . Time . | . . . . Total Part Build Rating . | . . . . Part Studies Acquired . | . . . . Parts Repaired . | . . . . Time . | . . . . Parts Recycled . | . . . . Recycled Matter . | . . . . Retrieved Matter . | . . . . Retrieved Components . | . . . . Parts Scanalyzed . | . . . . Part Schematics Acquired . | . . . . Parts Damaged . | . . . . Bothacking | -11 -10 -10 -10 ------------ Run | Yrd Mat Min Sub Used RIF Installer . | . . . . Robots Hacked . | . . . . Non-combat . | . . . . Combat . | . . . . Robot Hacks Applied . | . . . . Relay Couplers Released . | . . . . Fabnet Peak Effective % . | . . . . Robots Rewired . | . . . . Allies Hacked . | . . . . Hacks Repelled . | . . . . Allies | -11 -10 -10 -10 -------- Run | Yrd Mat Min Sub Total Allies 1 | . . 1 . Largest Group 1 | . . 1 . Highest-Rated Group 31 | . . 31 . Highest-Rated Ally 31 | . . 31 . Total Orders . | . . . . Ally Attacks . | . . . . Total Damage . | . . . . Kills . | . . . . Allies Corrupted . | . . . . Allies Melted . | . . . . Intel | -11 -10 -10 -10 ------- Run | Yrd Mat Min Sub Active Infowar (turns) . | . . . . Robot Analysis Total 1 | . 1 . . Derelict Logs Recovered . | . . . . Drone Launches . | . . . . Drone Recoveries . | . . . . Exploration | -11 -10 -10 -10 ------------- Run | Yrd Mat Min Sub Turns Passed 1694 | 70 1056 486 82 Spaces Moved 823 | 41 511 263 8 Core 3 | 3 . . . Treads 820 | 38 511 263 8 Legs . | . . . . Wheels . | . . . . Hover . | . . . . Flight . | . . . . Fastest Speed 50 | 50 160 160 160 Average Speed 159 | 151 160 160 160 Slowest Speed 160 | 160 160 160 160 Overloaded Moves . | . . . . Propulsion Burnouts . | . . . . Robots Hopped . | . . . . Potential Cave-ins . | . . . . Cave-ins Triggered . | . . . . Exploration Rate (%) 28 | 3 56 54 2 Regions Visited 3 Branch Regions 2 Pre-discovered Areas . | . . . . Known Exits Taken . | . . . . Unknown Exits Taken 3 | 1 1 1 . Scrap Searched 1 | . . 1 . Spaces Dug . | . . . . Terrain Destroyed 5 | . 4 . 1 Melee . | . . . . Projectile 1 | . . . 1 AOE 4 | . 4 . . Terrain Rammed . | . . . . Walls Destroyed . | . . . . Machines Disabled . | . . . . Actions | -11 -10 -10 -10 --------- Run | Yrd Mat Min Sub Total 1093 | 46 660 329 58 Wait 170 | . 73 61 36 Move 820 | 40 510 262 8 Hop . | . . . . Pick Up 18 | . 15 3 . Fast Attach 10 | 6 4 . . Attach 6 | . 1 2 3 Detach . | . . . . Swap . | . . . . Drop 6 | . 5 1 . Fire 63 | . 52 . 11 Melee . | . . . . Ram . | . . . . Kick . | . . . . Crush . | . . . . Escape Stasis . | . . . . Rewire . | . . . . Trap . | . . . . Miscellaneous . | . . . . Route ------- -11/Scrapyard -10/Materials (discovered 2 exits: [*Mat] / [*Min]) -10/Mines -10/Subcaves History --------- Turn | Location | Event 11 | -11/Scrapyard | Discovered new exit (range 16) 71 | -11/Scrapyard | Entered Materials 208 | -10/Materials | Discovered new exit (range 13) 300 | -10/Materials | Build established: Mutant 947 | -10/Materials | Discovered new exit (range 6) 1127 | -10/Materials | Entered Mines 1184 | -10/Mines | Received a Mining Laser from a helpful Derelict 1365 | -10/Mines | A weapon hastily lodged in a ceiling crevice suddenly fell to the ground 1420 | -10/Mines | Discovered new exit (range 5) 1490 | -10/Mines | Received a Rocket Launcher from a helpful Derelict 1613 | -10/Mines | Entered Subcaves 1614 | -10/Subcaves | Approached by a straggling Scientist 1659 | -10/Subcaves | Core integrity fell below 50% 1661 | -10/Subcaves | Ambushed by Subdweller buried in earth 1684 | -10/Subcaves | Core integrity fell below 20% 1695 | -10/Subcaves | Destroyed by O0-68A(R) with Subdweller Beam Cannon Last Messages --------------- all the Subs lurking out here." 01617_ H9-IXW(c): "Hey, let me tag along and I can get us both out of this nasty situation. At least I think I can... The group I got separated from was talking about a shortcut back to the UFD." 01658_ H9-IXW(c) suffers critical hit (Destroy). 01661_ H9-IXW(c) destroyed. 01662_ O0-68A(R): "NAT20!" 01662_ Subatomizers dissect the Wheel. 01668_ SC-AOJ(R) destroyed. 01671_ Lgt. Treads destroyed. 01673_ EM Pulse Gun destroyed. 01673_ Critical hit (Meltdown: +300). 01675_ EM Pulse Gun destroyed. 01676_ Subatomizers dissect the Wheel. 01687_ EM Pulse Gun destroyed. 01689_ Core Shielding destroyed. 01693_ O0-68A(R) knocked back. 01695_ Lgt. Treads destroyed. Map ----- +----------------------------------------------------+ | ????????????????????????????????????????????? | | ????????????????????????????????????????????? | | ????????????????????????????????????????????? | | ????????????????????????????????????????????? | | ????????????????????????????????????????????? | | ????????????????????????????????????????????? | | ????????????????????????????????????????????? | | ????????????????????????????????????????????? | | ????????????????????## ?????????????????????? | | ???????????????????? ?????????????????????? | | ???????????????????? ?????????????????????? | | ???????????????????? ####?????????????????? | | ???????????????????? ?????????????????? | | ???????????????????? #?????????????????? | | ????????????????????? ??????????????????? | | ????????????????????? ??????????????????? | | ????????????????????? ???????????????????? | | ????????????????????? ???????????????????? | | ??????????????###???? ????????????????????? | | ??????????????? ???? ????????????????????? | | ???????????????? ???# ###??????????????????? | | ????????????????? ### ;#??????????????????? | | ?????????????????#; ;; ##?????????????????? | | ????????????????##R ##????????????????? | | ???????????????## ; #????????????????? | | ???????????????# @ #### #???????????? | | ???????????????##;% %! #????????????? | | ???????????????## = # #???????????? | | ???????????????# #?# #???????????? | | ???????????????#; ;;; #???? #???????????? | | ???????????????### ##?????????????????? | | ?????????????????# # ##??????????????????? | | ?????????????????; #####???????????????????? | | ????????????????"; #???????????????????????? | | ????????????????; #???????????????????????? | | ???????????????#;; ;#???????????????????????? | | ??????????????? R %!????????????????????????? | | ??????????????? ????????????????????????? | | ??????????????? ????????????????????????? | | ???????????????? ????????????????????????? | | ???????????????? ????????????????????????? | | ???????????????? ##????????????????????????? | | ????????????????##??????????????????????????? | | ????????????????????????????????????????????? | | ????????????????????????????????????????????? | | ????????????????????????????????????????????? | | ????????????????????????????????????????????? | | ????????????????????????????????????????????? | | ????????????????????????????????????????????? | | ????????????????????????????????????????????? | +----------------------------------------------------+ Best States ------------- Heat Dissipation 39 Energy Generation 10 Energy Capacity 250 Matter Stores 300 Matter Capacity 300 Sight Range 16 Terrain Scan Density 10 Core Shielding 20 Evasion (%) 40 Recoil Reduction 2 Item Schematics ----------------- None Robot Schematics ------------------ None Fabricated ------------ Nothing Repaired ---------- Nothing Studied --------- None Alien Tech Used ----------------- None Achievements -------------- None Challenges ------------ None Game ------ Seed MomentumThermicCompactor Manual? 0 Play Time 00:06:44 Cumulative 604.4 hours Start 2026.04.28 @ 11:00:43 End 2026.04.28 @ 11:07:51 Sessions 1 Manual Loads 0 Difficulty Rogue Special Mode None Game No. 931 Rogue 776 Adventurer 148 Explorer 7 Win Type - Total 29 Types 21/1/4/1/0/0/1/0/0/1 Lore% 82 Gallery% 82 Achievement% 75 Wizard Run 0 Options --------- Layout 1 ASCII 0 Keyboard 0 Movement Numpad Keybinds 0 Fullscreen 2 Font 24/Smallcaps Map View 50x35 Zoom Use 0% Tactical HUD 1 Map Filters NONE Filters NONE Steam 1 RUN: 177514e5-271a-4c7b-a594-b3f0b8a106cf